lending/lending_fUSD_20240926
["ID","MTS","AMOUNT","RATE_DAILY","PERIOD"]
[339239629,1727392272527,-500.0,0.00012896,2]
[339239630,1727392272536,-500.0,0.00012896,2]
[339239631,1727392272545,-364.258155,0.00012896,2]
[339239632,1727392272555,-364.258155,0.00012896,2]
[339239633,1727392272564,-500.0,0.00012896,2]
[339239634,1727392272574,-636.42,0.00012896,2]
[339239635,1727392272583,-500.0,0.00012896,2]
[339239636,1727392272699,-500.0,0.00012896,2]
[339239637,1727392272710,-192.068917,0.00012896,2]
[339239638,1727392272721,-192.068917,0.00012896,2]
[339239639,1727392272731,-500.0,0.00012896,2]
[339239640,1727392272741,-500.0,0.00012896,2]
[339239641,1727392272750,-192.068917,0.00012896,2]
[339239642,1727392272760,-192.068917,0.00012896,2]
[339239643,1727392272769,-500.0,0.00012896,2]
[339239644,1727392272780,-324.356423,0.00012896,2]
[339239645,1727392272790,-324.356423,0.00012896,2]
[339239646,1727392272800,-500.0,0.00012896,2]
[339239647,1727392272810,-500.0,0.00012896,2]
[339239648,1727392272821,-324.356423,0.00012896,2]
[339239649,1727392272830,-710.86,0.00012896,2]
[339239650,1727392272839,-500.0,0.00012896,2]
[339239651,1727392272849,-324.356423,0.00012896,2]
[339239652,1727392272862,-351.81177905,0.00012896,2]
[339239653,1727392272871,-500.0,0.00012896,2]
[339239654,1727392272881,-500.0,0.00012896,2]
[339239655,1727392272890,-500.0,0.00012896,2]
[339239656,1727392272899,-438.675,0.00012896,2]
[339239657,1727392272909,-438.675,0.00012896,2]
[339239658,1727392272918,-500.0,0.00012896,2]
[339239659,1727392272928,-151.0,0.00012896,2]
[339239660,1727392272937,-151.0,0.00012896,2]
[339239661,1727392272947,-582.62841129,0.00012896,2]
[339239662,1727392272957,-500.0,0.00012896,2]
[339239663,1727392272966,-500.0,0.00012896,2]
[339239664,1727392272976,-500.0,0.00012896,2]
[339239665,1727392272986,-438.675,0.00012896,2]
[339239666,1727392272995,-553.53,0.00012896,2]
[339239667,1727392273005,-438.675,0.00012896,2]
[339239668,1727392273014,-503.97231438,0.00012896,2]
[339239669,1727392273024,-151.0,0.00012896,2]
[339239670,1727392273033,-151.0,0.00012896,2]
[339239671,1727392273043,-318.04295184,0.00012896,2]
[339239672,1727392273052,-500.0,0.00012896,2]
[339239673,1727392273062,-535.25,0.00012896,2]
[339239674,1727392273073,-500.0,0.00012896,2]
[339239675,1727392273085,-526.34897324,0.00012896,2]
[339239676,1727392273095,-500.0,0.00012896,2]
[339239677,1727392273109,-562.02480732,0.00012896,2]
[339239678,1727392273118,-592.73,0.00012896,2]
[339239679,1727392273128,-500.0,0.00012896,2]
[339239680,1727392273138,-502.08346932,0.00012896,2]
[339239681,1727392273147,-500.0,0.00012896,2]
[339239682,1727392273157,-500.0,0.00012896,2]
[339239683,1727392273166,-505.06733411,0.00012896,2]
[339239684,1727392273176,-326.803229,0.00012896,2]
[339239685,1727392273185,-500.0,0.00012896,2]
[339239686,1727392273195,-326.803229,0.00012896,2]
[339239687,1727392273204,-500.0,0.00012896,2]
[339239688,1727392273213,-500.0,0.00012896,2]
[339239689,1727392273223,-503.31606458,0.00012896,2]
[339239690,1727392273231,-500.0,0.00012896,2]
[339239691,1727392273240,-326.803229,0.00012896,2]
[339239692,1727392273250,-326.803229,0.00012896,2]
[339239693,1727392273263,-151.0,0.00012896,2]
[339239694,1727392273273,-151.0,0.00012896,2]
[339239695,1727392273282,-233.28741121,0.00012896,2]
[339239696,1727392273291,-500.0,0.00012896,2]
[339239697,1727392273302,-500.0,0.00012896,2]
[339239698,1727392273312,-300.77308148,0.00012896,2]
[339239699,1727392273321,-500.0,0.00012896,2]
[339239700,1727392273331,-500.0,0.00012896,2]
[339239701,1727392273341,-500.0,0.00012896,2]
[339239702,1727392273352,-500.0,0.00012896,2]
[339239703,1727392273362,-500.0,0.00012896,2]
[339239704,1727392273371,-500.0,0.00012896,2]
[339239705,1727392273381,-500.0,0.00012896,2]
[339239706,1727392273390,-500.0,0.00012896,2]
[339239707,1727392273400,-500.0,0.00012896,2]
[339239708,1727392273409,-1126.35,0.00012896,2]
[339239709,1727392273418,-151.0,0.00012896,2]
[339239710,1727392273428,-151.0,0.00012896,2]
[339239711,1727392273437,-151.0,0.00012896,2]
[339239712,1727392273447,-151.0,0.00012896,2]
[339239713,1727392273456,-500.0,0.00012896,2]
[339239714,1727392273465,-211.82809,0.00012896,2]
[339239715,1727392273475,-211.82809,0.00012896,2]
[339239716,1727392273484,-151.0,0.00012896,2]
[339239717,1727392273494,-151.0,0.00012896,2]
[339239718,1727392273503,-500.0,0.00012896,2]
[339239719,1727392273513,-564.83,0.00012896,2]
[339239720,1727392273523,-211.82809,0.00012896,2]
[339239721,1727392273532,-211.82808,0.00012896,2]
[339239722,1727392273541,-591.32,0.00012896,2]
[339239723,1727392273550,-920.79,0.00012896,2]
[339239724,1727392273559,-500.0,0.00012896,2]
[339239725,1727392273569,-157.70321739,0.00012896,2]
[339239726,1727392273578,-606.54,0.00012896,2]
[339239727,1727392273587,-500.0,0.00012896,2]
[339239728,1727392273596,-500.0,0.00012896,2]
[339239729,1727392273608,-500.0,0.00012896,2]
[339239730,1727392273617,-500.0,0.00012896,2]
[339239731,1727392273627,-395.70061934,0.00012896,2]
[339239732,1727392273636,-500.91114741,0.00012896,2]
[339239733,1727392273646,-500.0,0.00012896,2]
[339239734,1727392273655,-500.0,0.00012896,2]
[339239735,1727392273665,-500.0,0.00012896,2]
[339239736,1727392273675,-556.16161963,0.00012896,2]
[339239737,1727392273684,-773.69,0.00012896,2]
[339239738,1727392273693,-887.85,0.00012896,2]
[339239739,1727392273703,-500.0,0.00012896,2]
[339239740,1727392273712,-500.0,0.00012896,2]
[339239741,1727392273721,-500.0,0.00012896,2]
[339239742,1727392273731,-500.0,0.00012896,2]
[339239743,1727392273741,-500.0,0.00012896,2]
[339239744,1727392273750,-500.0,0.00012896,2]
[339239745,1727392273760,-591.22,0.00012896,2]
[339239746,1727392273769,-591.22,0.00012896,2]
[339239747,1727392273779,-151.0,0.00012896,2]
[339239748,1727392273789,-602.83,0.00012896,2]
[339239749,1727392273798,-151.0,0.00012896,2]
[339239750,1727392273807,-2153.59811,0.00012896,2]
[339239751,1727392273816,-2153.598101,0.00012896,2]
[339239752,1727392273825,-500.0,0.00012896,2]
[339239753,1727392273835,-770.341023,0.00012896,2]
[339239754,1727392273844,-770.341023,0.00012896,2]
[339239755,1727392273854,-151.0,0.00012896,2]
[339239756,1727392273863,-151.0,0.00012896,2]
[339239757,1727392273872,-361.427853,0.00012896,2]
[339239758,1727392273881,-770.341023,0.00012896,2]
[339239759,1727392273891,-361.427853,0.00012896,2]
[339239760,1727392273901,-770.341023,0.00012896,2]
[339239761,1727392273910,-250.058468,0.00012896,2]
[339239762,1727392273920,-500.0,0.00012896,2]
[339239763,1727392273930,-361.427853,0.00012896,2]
[339239764,1727392273939,-361.427847,0.00012896,2]
[339239765,1727392273949,-500.0,0.00012896,2]
[339239766,1727392273958,-500.0,0.00012896,2]
[339239767,1727392273967,-705.42,0.00012896,2]
[339239768,1727392273977,-500.0,0.00012896,2]
[339239769,1727392273987,-200.045756,0.00012896,2]
[339239770,1727392273997,-200.045756,0.00012896,2]
[339239771,1727392274006,-500.0,0.00012896,2]
[339239772,1727392274016,-500.0,0.00012896,2]
[339239773,1727392274026,-200.045756,0.00012896,2]
[339239774,1727392274035,-407.62197976,0.00012896,2]
[339239775,1727392274044,-200.045747,0.00012896,2]
[339239776,1727392274054,-500.0,0.00012896,2]
[339239777,1727392274063,-185.464782,0.00012896,2]
[339239778,1727392274072,-185.464782,0.00012896,2]
[339239779,1727392274082,-185.464782,0.00012896,2]
[339239780,1727392274092,-2293.4,0.00012896,2]
[339239781,1727392274101,-185.464778,0.00012896,2]
[339239782,1727392274110,-736.02,0.00012896,2]
[339239783,1727392274119,-500.0,0.00012896,2]
[339239784,1727392274129,-736.02,0.00012896,2]
[339239785,1727392274138,-500.0,0.00012896,2]
[339239786,1727392274147,-500.0,0.00012896,2]
[339239787,1727392274156,-500.0,0.00012896,2]
[339239788,1727392274166,-500.0,0.00012896,2]
[339239789,1727392274177,-607.33,0.00012896,2]
[339239790,1727392274188,-790.35,0.00012896,2]
[339239791,1727392274198,-14150.98,0.00012896,2]
[339239792,1727392274209,-3415.35,0.00012896,2]
[339239793,1727392274221,-14150.98,0.00012896,2]
[339239794,1727392274233,-153.06780039,0.00012896,2]
[339239795,1727392274244,-151.0,0.00012896,2]
[339239796,1727392274255,-500.0,0.00012896,2]
[339239797,1727392274267,-500.0,0.00012896,2]
[339239798,1727392274277,-510.77,0.00012896,2]
[339239799,1727392274286,-789.288631,0.00012896,2]
[339239800,1727392274296,-789.288631,0.00012896,2]
[339239801,1727392274308,-669.63,0.00012896,2]
[339239802,1727392274319,-500.0,0.00012896,2]
[339239803,1727392274331,-789.288631,0.00012896,2]
[339239804,1727392274341,-789.288628,0.00012896,2]
[339239805,1727392274352,-500.0,0.00012896,2]
[339239806,1727392274361,-1205.35,0.00012896,2]
[339239807,1727392274371,-2190.72,0.00012896,2]
[339239808,1727392274381,-2190.72,0.00012896,2]
[339239809,1727392274392,-517.457072,0.00012896,2]
[339239810,1727392274402,-643.486909,0.00012896,2]
[339239811,1727392274411,-517.457072,0.00012896,2]
[339239812,1727392274423,-151.0,0.00012896,2]
[339239813,1727392274432,-643.486913,0.00012896,2]
[339239814,1727392274443,-500.0,0.00012896,2]
[339239815,1727392274452,-2207.62,0.00012896,2]
[339239816,1727392274462,-290.39043914,0.00012896,2]
[339239817,1727392274567,-500.0,0.00012896,2]
[339239818,1727392274578,-627.94117096,0.00012896,2]
[339239819,1727392274587,-500.0,0.00012896,2]
[339239820,1727392274596,-500.0,0.00012896,2]
[339239821,1727392274606,-1050.75,0.00012896,2]
[339239822,1727392274615,-744.49,0.00012896,2]
[339239823,1727392274624,-1176.48,0.00012896,2]
[339239824,1727392274633,-1176.48,0.00012896,2]
[339239825,1727392274643,-500.0,0.00012896,2]
[339239826,1727392274652,-400.98090548,0.00012896,2]
[339239827,1727392274662,-619.7668115,0.00012896,2]
[339239828,1727392274671,-500.0,0.00012896,2]
[339239829,1727392274680,-500.0,0.00012896,2]
[339239830,1727392274690,-500.0,0.00012896,2]
[339239831,1727392274699,-212.80840448,0.00012896,2]
[339239832,1727392274708,-662.2,0.00012896,2]
[339239833,1727392274718,-662.2,0.00012896,2]
[339239834,1727392274727,-662.2,0.00012896,2]
[339239835,1727392274737,-500.0,0.00012896,2]
[339239836,1727392274746,-956.33,0.00012896,2]
[339239837,1727392274756,-956.33,0.00012896,2]
[339239838,1727392274765,-500.0,0.00012896,2]
[339239839,1727392274775,-633.12655419,0.00012896,2]
[339239840,1727392274784,-1372.69,0.00012896,2]
[339239841,1727392274794,-2146.21,0.00012896,2]
[339239842,1727392274803,-1372.69,0.00012896,2]
[339239843,1727392274812,-2146.21,0.00012896,2]
[339239844,1727392274822,-2110.6,0.00012896,2]
[339239845,1727392274832,-2110.6,0.00012896,2]
[339239846,1727392274841,-1372.69,0.00012896,2]
[339239847,1727392274851,-2110.6,0.00012896,2]
[339239848,1727392274861,-1962.71,0.00012896,2]
[339239849,1727392274870,-1962.71,0.00012896,2]
[339239850,1727392274880,-1701.65,0.00012896,2]
[339239851,1727392274889,-933.9,0.00012896,2]
[339239852,1727392274899,-1701.65,0.00012896,2]
[339239853,1727392274909,-933.9,0.00012896,2]
[339239854,1727392274918,-933.9,0.00012896,2]
[339239855,1727392274927,-500.0,0.00012896,2]
[339239856,1727392274937,-446.250459,0.00012896,2]
[339239857,1727392274946,-500.0,0.00012896,2]
[339239858,1727392274956,-3291.7,0.00012896,2]
[339239859,1727392274966,-500.0,0.00012896,2]
[339239860,1727392274975,-500.0,0.00012896,2]
[339239861,1727392274984,-446.250457,0.00012896,2]
[339239862,1727392274993,-500.0,0.00012896,2]
[339239863,1727392275003,-500.0,0.00012896,2]
[339239864,1727392275014,-558.53,0.00012896,2]
[339239865,1727392275024,-712.65,0.00012896,2]
[339239866,1727392275033,-712.65,0.00012896,2]
[339239867,1727392275044,-1952.55,0.00012896,2]
[339239868,1727392275054,-1952.55,0.00012896,2]
[339239869,1727392275064,-1952.55,0.00012896,2]
[339239870,1727392275073,-500.0,0.00012896,2]
[339239871,1727392275083,-951.77,0.00012896,2]
[339239872,1727392275092,-951.77,0.00012896,2]
[339239873,1727392275102,-6246.68743828,0.00012896,2]
[339239874,1727392275112,-244577.21062458,0.00012897,3]
[339239875,1727392275121,-151.0,0.00012897,2]
[339239876,1727392275130,-151.0,0.00012897,2]
[339239877,1727392275140,-151.0,0.00012897,2]
[339239878,1727392275151,-168.617546,0.00012897,2]
[339239879,1727392275161,-154.477267,0.00012897,2]
[339239880,1727392275173,-151.0,0.00012897,2]
[339239881,1727392275182,-264.974641,0.00012897,2]
[339239882,1727392275192,-151.0,0.00012897,2]
[339239883,1727392275205,-151.0,0.00012897,2]
[339239884,1727392275214,-151.0,0.00012897,2]
[339239885,1727392275224,-151.0,0.00012897,2]
[339239886,1727392275234,-151.0,0.00012897,2]
[339239887,1727392275243,-174.942557,0.00012897,2]
[339239888,1727392275254,-694.87,0.00012897,2]
[339239889,1727392275270,-564.69,0.00012897,2]
[339239890,1727392275281,-151.0,0.00012897,2]
[339239891,1727392275291,-151.0,0.00012897,2]
[339239892,1727392275303,-151.0,0.00012897,2]
[339239893,1727392275313,-151.0,0.00012897,2]
[339239894,1727392275323,-500.0,0.00012897,2]
[339239895,1727392275335,-151.0,0.00012897,2]
[339239896,1727392275345,-220.576704,0.00012897,2]
[339239897,1727392275355,-151.0,0.00012897,2]
[339239898,1727392275364,-151.0,0.00012897,2]
[339239899,1727392275374,-530.95,0.00012897,2]
[339239900,1727392275384,-622.761498,0.00012897,2]
[339239901,1727392275393,-622.761498,0.00012897,2]
[339239902,1727392275405,-622.761498,0.00012897,2]
[339239903,1727392275415,-622.761498,0.00012897,2]
[339239904,1727392275425,-500.0,0.00012897,2]
[339239905,1727392275434,-500.0,0.00012897,2]
[339239906,1727392275444,-500.0,0.00012897,2]
[339239907,1727392275453,-500.0,0.00012897,2]
[339239908,1727392275463,-500.0,0.00012897,2]
[339239909,1727392275473,-1269.99,0.00012897,2]
[339239910,1727392275482,-500.0,0.00012897,2]
[339239911,1727392275492,-151.0,0.00012897,2]
[339239912,1727392275502,-495.684132,0.00012897,2]
[339239913,1727392275511,-151.0,0.00012897,2]
[339239914,1727392275521,-495.684132,0.00012897,2]
[339239915,1727392275531,-293.41137,0.00012897,2]
[339239916,1727392275540,-495.684132,0.00012897,2]
[339239917,1727392275550,-495.684129,0.00012897,2]
[339239918,1727392275559,-186.565699,0.00012897,2]
[339239919,1727392275569,-500.0,0.00012897,2]
[339239920,1727392275578,-186.565699,0.00012897,2]
[339239921,1727392275588,-500.0,0.00012897,2]
[339239922,1727392275598,-186.565699,0.00012897,2]
[339239923,1727392275608,-186.565692,0.00012897,2]
[339239924,1727392275617,-500.0,0.00012897,2]
[339239925,1727392275626,-154.357295,0.00012897,2]
[339239926,1727392275635,-1010.02,0.00012897,2]
[339239927,1727392275645,-500.0,0.00012897,2]
[339239928,1727392275654,-1010.02,0.00012897,2]
[339239929,1727392275663,-1010.02,0.00012897,2]
[339239930,1727392275674,-500.0,0.00012897,2]
[339239931,1727392275683,-669.73,0.00012897,2]
[339239932,1727392275694,-1152.58,0.00012897,2]
[339239933,1727392275703,-1152.58,0.00012897,2]
[339239934,1727392275714,-1152.58,0.00012897,2]
[339239935,1727392275724,-163.84493806,0.00012897,2]
[339239936,1727392275734,-191.26139,0.00012897,2]
[339239937,1727392275744,-500.0,0.00012897,2]
[339239938,1727392275755,-500.0,0.00012897,2]
[339239939,1727392275766,-4781.29,0.00012897,2]
[339239940,1727392275776,-4781.29,0.00012897,2]
[339239941,1727392275786,-4781.29,0.00012897,2]
[339239942,1727392275795,-500.0,0.00012897,2]
[339239943,1727392275805,-500.0,0.00012897,2]
[339239944,1727392275815,-500.0,0.00012897,2]
[339239945,1727392275824,-1451.26,0.00012897,2]
[339239946,1727392275833,-1451.26,0.00012897,2]
[339239947,1727392275843,-1451.26,0.00012897,2]
[339239948,1727392275852,-500.0,0.00012897,2]
[339239949,1727392275862,-416.019819,0.00012897,2]
[339239950,1727392275872,-416.019819,0.00012897,2]
[339239951,1727392275881,-500.0,0.00012897,2]
[339239952,1727392275890,-416.019819,0.00012897,2]
[339239953,1727392275900,-416.01981,0.00012897,2]
[339239954,1727392275909,-500.0,0.00012897,2]
[339239955,1727392275918,-500.0,0.00012897,2]
[339239956,1727392275928,-519.8,0.00012897,2]
[339239957,1727392275937,-519.8,0.00012897,2]
[339239958,1727392275946,-519.8,0.00012897,2]
[339239959,1727392275955,-500.0,0.00012897,2]
[339239960,1727392275965,-500.0,0.00012897,2]
[339239961,1727392275974,-500.0,0.00012897,2]
[339239962,1727392275983,-182.9688276,0.00012897,2]
[339239963,1727392275993,-500.0,0.00012897,2]
[339239964,1727392276003,-500.0,0.00012897,2]
[339239965,1727392276012,-554.69628273,0.00012897,2]
[339239966,1727392276021,-500.0,0.00012897,2]
[339239967,1727392276030,-500.0,0.00012897,2]
[339239968,1727392276039,-580.20139318,0.00012897,2]
[339239969,1727392276049,-500.0,0.00012897,2]
[339239970,1727392276059,-330.399996,0.00012897,2]
[339239971,1727392276070,-500.0,0.00012897,2]
[339239972,1727392276078,-500.0,0.00012897,7]
[339239973,1727392276088,-151.0,0.00012897,2]
[339239974,1727392276097,-151.0,0.00012897,2]
[339239975,1727392276107,-514.4869453,0.00012897,2]
[339239976,1727392276116,-500.0,0.00012897,2]
[339239977,1727392276125,-500.0,0.00012897,2]
[339239978,1727392276135,-500.0,0.00012897,2]
[339239979,1727392276143,-505.05282724,0.00012897,2]
[339239980,1727392276153,-500.0,0.00012897,2]
[339239981,1727392276163,-739.38,0.00012897,2]
[339239982,1727392276173,-739.38,0.00012897,2]
[339239983,1727392276183,-739.38,0.00012897,2]
[339239984,1727392276289,-708.26,0.00012897,2]
[339239985,1727392276300,-500.0,0.00012897,2]
[339239986,1727392276310,-500.0,0.00012897,2]
[339239987,1727392276320,-306.292767,0.00012897,2]
[339239988,1727392276329,-306.292767,0.00012897,2]
[339239989,1727392276338,-555.82995045,0.00012897,2]
[339239990,1727392276348,-306.292767,0.00012897,2]
[339239991,1727392276358,-306.292764,0.00012897,2]
[339239992,1727392276368,-500.0,0.00012897,2]
[339239993,1727392276377,-500.0,0.00012897,2]
[339239994,1727392276388,-500.0,0.00012897,2]
[339239995,1727392276399,-702.902392,0.00012897,2]
[339239996,1727392276409,-504.25511192,0.00012897,2]
[339239997,1727392276419,-702.902392,0.00012897,2]
[339239998,1727392276428,-1197.17,0.00012897,2]
[339239999,1727392276438,-702.902392,0.00012897,2]
[339240000,1727392276447,-625.48,0.00012897,2]
[339240001,1727392276457,-702.902384,0.00012897,2]
[339240002,1727392276466,-151.0,0.00012897,2]
[339240003,1727392276476,-151.0,0.00012897,2]
[339240004,1727392276485,-500.0,0.00012897,2]
[339240005,1727392276494,-500.0,0.00012897,2]
[339240006,1727392276504,-541.97,0.00012897,2]
[339240007,1727392276514,-216.34024343,0.00012897,2]
[339240008,1727392276523,-152.31702,0.00012897,2]
[339240009,1727392276533,-152.31702,0.00012897,2]
[339240010,1727392276542,-151.0,0.00012897,2]
[339240011,1727392276552,-2477.65,0.00012897,2]
[339240012,1727392276562,-1415.03,0.00012897,2]
[339240013,1727392276571,-152.31702,0.00012897,2]
[339240014,1727392276581,-152.317018,0.00012897,2]
[339240015,1727392276590,-500.0,0.00012897,2]
[339240016,1727392276599,-500.0,0.00012897,2]
[339240017,1727392276618,-500.0,0.00012897,2]
[339240018,1727392276627,-500.0,0.00012897,2]
[339240019,1727392276637,-500.0,0.00012897,2]
[339240020,1727392276646,-500.0,0.00012897,2]
[339240021,1727392276656,-500.0,0.00012897,2]
[339240022,1727392276665,-500.0,0.00012897,2]
[339240023,1727392276675,-652.33,0.00012897,2]
[339240024,1727392276685,-500.0,0.00012897,2]
[339240025,1727392276695,-500.0,0.00012897,2]
[339240026,1727392276705,-934.18,0.00012897,2]
[339240027,1727392276715,-151.0,0.00012897,2]
[339240028,1727392276724,-500.0,0.00012897,2]
[339240029,1727392276734,-1154.63,0.00012897,2]
[339240030,1727392276744,-1154.63,0.00012897,2]
[339240031,1727392276754,-1154.63,0.00012897,2]
[339240032,1727392276763,-199.130994,0.00012897,2]
[339240033,1727392276773,-500.0,0.00012897,2]
[339240034,1727392276783,-500.0,0.00012897,2]
[339240035,1727392276793,-547.12,0.00012897,2]
[339240036,1727392276804,-547.12,0.00012897,2]
[339240037,1727392276814,-364.258155,0.00012897,2]
[339240038,1727392276824,-547.12,0.00012897,2]
[339240039,1727392276833,-199.131,0.00012897,2]
[339240040,1727392276844,-364.25815,0.00012897,2]
[339240041,1727392276854,-500.0,0.00012897,2]
[339240042,1727392276864,-636.42,0.00012897,2]
[339240043,1727392276874,-192.068917,0.00012897,2]
[339240044,1727392276884,-500.0,0.00012897,2]
[339240045,1727392276894,-500.0,0.00012897,2]
[339240046,1727392276904,-500.0,0.00012897,2]
[339240047,1727392276913,-440.82457446,0.00012897,2]
[339240048,1727392276923,-192.068912,0.00012897,2]
[339240049,1727392276933,-500.0,0.00012897,2]
[339240050,1727392276943,-324.356423,0.00012897,2]
[339240051,1727392276953,-500.0,0.00012897,2]
[339240052,1727392276963,-500.0,0.00012897,2]
[339240053,1727392276973,-500.0,0.00012897,2]
[339240054,1727392276983,-500.0,0.00012897,2]
[339240055,1727392276992,-710.86,0.00012897,2]
[339240056,1727392277002,-324.356419,0.00012897,2]
[339240057,1727392277012,-500.0,0.00012897,2]
[339240058,1727392277021,-500.0,0.00012897,2]
[339240059,1727392277031,-611.56985123,0.00012897,2]
[339240060,1727392277041,-500.0,0.00012897,2]
[339240061,1727392277051,-438.675,0.00012897,2]
[339240062,1727392277060,-376.61378077,0.00012897,2]
[339240063,1727392277070,-151.0,0.00012897,2]
[339240064,1727392277080,-500.0,0.00012897,2]
[339240065,1727392277089,-500.0,0.00012897,2]
[339240066,1727392277099,-553.53,0.00012897,2]
[339240067,1727392277110,-438.675,0.00012897,2]
[339240068,1727392277119,-213.605985,0.00012897,2]
[339240069,1727392277129,-504.41501762,0.00012897,2]
[339240070,1727392277138,-535.25,0.00012897,2]
[339240071,1727392277148,-500.0,0.00012897,2]
[339240072,1727392277157,-500.0,0.00012897,2]
[339240073,1727392277167,-500.0,0.00012897,2]
[339240074,1727392277178,-500.0,0.00012897,2]
[339240075,1727392277189,-592.73,0.00012897,2]
[339240076,1727392277199,-543.53795218,0.00012897,2]
[339240077,1727392277208,-500.0,0.00012897,2]
[339240078,1727392277218,-326.803229,0.00012897,2]
[339240079,1727392277228,-500.0,0.00012897,2]
[339240080,1727392277238,-500.0,0.00012897,2]
[339240081,1727392277248,-326.80323,0.00012897,2]
[339240082,1727392277260,-151.0,0.00012897,2]
[339240083,1727392277270,-320.29268436,0.00012897,2]
[339240084,1727392277281,-500.0,0.00012897,2]
[339240085,1727392277291,-500.0,0.00012897,2]
[339240086,1727392277301,-536.66621426,0.00012897,2]
[339240087,1727392277311,-500.0,0.00012897,2]
[339240088,1727392277320,-195.95774888,0.00012897,2]
[339240089,1727392277332,-500.0,0.00012897,2]
[339240090,1727392277342,-500.0,0.00012897,2]
[339240091,1727392277353,-500.0,0.00012897,2]
[339240092,1727392277362,-568.58363608,0.00012897,2]
[339240093,1727392277372,-598.83565951,0.00012897,2]
[339240094,1727392277381,-500.0,0.00012897,2]
[339240095,1727392277390,-1126.35,0.00012897,2]
[339240096,1727392277399,-1126.35,0.00012897,2]
[339240097,1727392277409,-1126.35,0.00012897,2]
[339240098,1727392277419,-500.0,0.00012897,2]
[339240099,1727392277430,-151.0,0.00012897,2]
[339240100,1727392277439,-500.0,0.00012897,2]
[339240101,1727392277449,-500.0,0.00012897,2]
[339240102,1727392277459,-500.0,0.00012897,2]
[339240103,1727392277468,-500.0,0.00012897,2]
[339240104,1727392277478,-500.0,0.00012897,2]
[339240105,1727392277487,-564.83,0.00012897,2]
[339240106,1727392277497,-591.32,0.00012897,2]
[339240107,1727392277506,-591.32,0.00012897,2]
[339240108,1727392277515,-591.32,0.00012897,2]
[339240109,1727392277525,-920.79,0.00012897,2]
[339240110,1727392277535,-920.79,0.00012897,2]
[339240111,1727392277544,-920.79,0.00012897,2]
[339240112,1727392277553,-500.0,0.00012897,2]
[339240113,1727392277562,-606.54,0.00012897,2]
[339240114,1727392277572,-500.0,0.00012897,2]
[339240115,1727392277582,-500.0,0.00012897,2]
[339240116,1727392277592,-500.0,0.00012897,2]
[339240117,1727392277603,-504.2573291,0.00012897,2]
[339240118,1727392277613,-500.0,0.00012897,2]
[339240119,1727392277622,-500.0,0.00012897,2]
[339240120,1727392277632,-515.72232923,0.00012897,2]
[339240121,1727392277642,-500.0,0.00012897,2]
[339240122,1727392277651,-523.45072276,0.00012897,2]
[339240123,1727392277661,-502.77467787,0.00012897,2]
[339240124,1727392277671,-500.0,0.00012897,2]
[339240125,1727392277682,-500.0,0.00012897,2]
[339240126,1727392277691,-500.0,0.00012897,2]
[339240127,1727392277701,-773.69,0.00012897,2]
[339240128,1727392277710,-773.69,0.00012897,2]